{"text_format":"3","workbook":"xlsx","n_sheets":3,"sheets":["Opgaver","Månedsvisning","Ugevisning"],"not_rendered":{"images":4,"defined_names":16},"read":"whole","date_system":"1900"}

{"sheet":"Opgaver","index":0,"n_rows":15,"n_cols":3,"rows_kept":15}
[null,"MÅNEDSVISNING","UGEVISNING"]
[null," OPGAVER"]
[null,"BESKRIVELSE","FORFALDSDATO"]
[null,"Opgave 1",{"$f":"TODAY()","v":"2016-11-29"}]
[null,"Opgave 2",{"$f":"TODAY()+15","v":"2016-12-14"}]
[null,"Opgave 3",{"$f":"TODAY()+30","v":"2016-12-29"}]
[null,"Opgave 4",{"$f":"TODAY()+45","v":"2017-01-13"}]
[null,"Opgave 5",{"$f":"TODAY()+60","v":"2017-01-28"}]
[null,"Opgave 6",{"$f":"TODAY()+75","v":"2017-02-12"}]
[null,"Opgave 7",{"$f":"TODAY()+90","v":"2017-02-27"}]
[null,"Opgave 8",{"$f":"TODAY()+105","v":"2017-03-14"}]
[null,"Opgave 9",{"$f":"TODAY()+115","v":"2017-03-24"}]
[null,"Opgave 10",{"$f":"TODAY()+130","v":"2017-04-08"}]
[null,"Opgave 11",{"$f":"TODAY()+145","v":"2017-04-23"}]
[null,"Opgave 12",{"$f":"TODAY()+160","v":"2017-05-08"}]

{"sheet":"Månedsvisning","index":1,"n_rows":17,"n_cols":8,"rows_kept":17,"merged":[[3,1,3,7]]}
[null,"OPGAVER","UGEVISNING"]
[null,"Vælg måned:","Angiv år:"]
[null,9,{"$f":"YEAR(TODAY())","v":2016}]
[null," MÅNEDSVISNING"]
[null,"MANDAG","TIRSDAG","ONSDAG","TORSDAG","FREDAG","LØRDAG","SØNDAG"]
[null,{"$f":"IF(WEEKDAY(DATEVALUE(\"1-\"&MåMåned&\"-\"&MoÅr)-1)=COLUMN(A$2),1,IF(LEN(A6)>0,A6+1,\"\"))","v":""},"","",1,2,3,4]
[null,{"$f":"IF(LEN(B6)=0,\"\",IF(COUNTIF(Opgaver[FORFALDSDATO],DATE(MoÅr,MåMånedsNum,B6))>0,\"Opgaven forfalder!\",\"\"))","v":""},{"$f":"IF(LEN(C6)=0,\"\",IF(COUNTIF(Opgaver[FORFALDSDATO],DATE(MoÅr,MåMånedsNum,C6))>0,\"Opgaven forfalder!\",\"\"))","v":""},{"$f":"IF(LEN(D6)=0,\"\",IF(COUNTIF(Opgaver[FORFALDSDATO],DATE(MoÅr,MåMånedsNum,D6))>0,\"Opgaven forfalder!\",\"\"))","v":""},{"$f":"IF(LEN(E6)=0,\"\",IF(COUNTIF(Opgaver[FORFALDSDATO],DATE(MoÅr,MåMånedsNum,E6))>0,\"Opgaven forfalder!\",\"\"))","v":""},{"$f":"IF(LEN(F6)=0,\"\",IF(COUNTIF(Opgaver[FORFALDSDATO],DATE(MoÅr,MåMånedsNum,F6))>0,\"Opgaven forfalder!\",\"\"))","v":""},{"$f":"IF(LEN(G6)=0,\"\",IF(COUNTIF(Opgaver[FORFALDSDATO],DATE(MoÅr,MåMånedsNum,G6))>0,\"Opgaven forfalder!\",\"\"))","v":""},{"$f":"IF(LEN(H6)=0,\"\",IF(COUNTIF(Opgaver[FORFALDSDATO],DATE(MoÅr,MåMånedsNum,H6))>0,\"Opgaven forfalder!\",\"\"))","v":""}]
[null,{"$f":"IF(LEN(H6)>0,IF(H6=DAY(DATE(MoÅr,MåMånedsNum+1,0)),\"\",H6+1),\"\")","v":5},{"$f":"IF(LEN(B8)>0,IF(B8=DAY(DATE(MoÅr,MåMånedsNum+1,0)),\"\",B8+1),\"\")","v":6},7,8,9,10,11]
[null,{"$f":"IF(LEN(B8)=0,\"\",IF(COUNTIF(Opgaver[FORFALDSDATO],DATE(MoÅr,MåMånedsNum,B8))>0,\"Opgaven forfalder!\",\"\"))","v":""},{"$f":"IF(LEN(C8)=0,\"\",IF(COUNTIF(Opgaver[FORFALDSDATO],DATE(MoÅr,MåMånedsNum,C8))>0,\"Opgaven forfalder!\",\"\"))","v":""},{"$f":"IF(LEN(D8)=0,\"\",IF(COUNTIF(Opgaver[FORFALDSDATO],DATE(MoÅr,MåMånedsNum,D8))>0,\"Opgaven forfalder!\",\"\"))","v":""},{"$f":"IF(LEN(E8)=0,\"\",IF(COUNTIF(Opgaver[FORFALDSDATO],DATE(MoÅr,MåMånedsNum,E8))>0,\"Opgaven forfalder!\",\"\"))","v":""},{"$f":"IF(LEN(F8)=0,\"\",IF(COUNTIF(Opgaver[FORFALDSDATO],DATE(MoÅr,MåMånedsNum,F8))>0,\"Opgaven forfalder!\",\"\"))","v":""},{"$f":"IF(LEN(G8)=0,\"\",IF(COUNTIF(Opgaver[FORFALDSDATO],DATE(MoÅr,MåMånedsNum,G8))>0,\"Opgaven forfalder!\",\"\"))","v":""},{"$f":"IF(LEN(H8)=0,\"\",IF(COUNTIF(Opgaver[FORFALDSDATO],DATE(MoÅr,MåMånedsNum,H8))>0,\"Opgaven forfalder!\",\"\"))","v":""}]
[null,{"$f":"IF(LEN(H8)>0,IF(H8=DAY(DATE(MoÅr,MåMånedsNum+1,0)),\"\",H8+1),\"\")","v":12},{"$f":"IF(LEN(B10)>0,IF(B10=DAY(DATE(MoÅr,MåMånedsNum+1,0)),\"\",B10+1),\"\")","v":13},14,15,16,17,18]
[null,{"$f":"IF(LEN(B10)=0,\"\",IF(COUNTIF(Opgaver[FORFALDSDATO],DATE(MoÅr,MåMånedsNum,B10))>0,\"Opgaven forfalder!\",\"\"))","v":""},{"$f":"IF(LEN(C10)=0,\"\",IF(COUNTIF(Opgaver[FORFALDSDATO],DATE(MoÅr,MåMånedsNum,C10))>0,\"Opgaven forfalder!\",\"\"))","v":""},{"$f":"IF(LEN(D10)=0,\"\",IF(COUNTIF(Opgaver[FORFALDSDATO],DATE(MoÅr,MåMånedsNum,D10))>0,\"Opgaven forfalder!\",\"\"))","v":""},{"$f":"IF(LEN(E10)=0,\"\",IF(COUNTIF(Opgaver[FORFALDSDATO],DATE(MoÅr,MåMånedsNum,E10))>0,\"Opgaven forfalder!\",\"\"))","v":""},{"$f":"IF(LEN(F10)=0,\"\",IF(COUNTIF(Opgaver[FORFALDSDATO],DATE(MoÅr,MåMånedsNum,F10))>0,\"Opgaven forfalder!\",\"\"))","v":""},{"$f":"IF(LEN(G10)=0,\"\",IF(COUNTIF(Opgaver[FORFALDSDATO],DATE(MoÅr,MåMånedsNum,G10))>0,\"Opgaven forfalder!\",\"\"))","v":""},{"$f":"IF(LEN(H10)=0,\"\",IF(COUNTIF(Opgaver[FORFALDSDATO],DATE(MoÅr,MåMånedsNum,H10))>0,\"Opgaven forfalder!\",\"\"))","v":""}]
[null,{"$f":"IF(LEN(H10)>0,IF(H10=DAY(DATE(MoÅr,MåMånedsNum+1,0)),\"\",H10+1),\"\")","v":19},{"$f":"IF(LEN(B12)>0,IF(B12=DAY(DATE(MoÅr,MåMånedsNum+1,0)),\"\",B12+1),\"\")","v":20},21,22,23,24,25]
[null,{"$f":"IF(LEN(B12)=0,\"\",IF(COUNTIF(Opgaver[FORFALDSDATO],DATE(MoÅr,MåMånedsNum,B12))>0,\"Opgaven forfalder!\",\"\"))","v":""},{"$f":"IF(LEN(C12)=0,\"\",IF(COUNTIF(Opgaver[FORFALDSDATO],DATE(MoÅr,MåMånedsNum,C12))>0,\"Opgaven forfalder!\",\"\"))","v":""},{"$f":"IF(LEN(D12)=0,\"\",IF(COUNTIF(Opgaver[FORFALDSDATO],DATE(MoÅr,MåMånedsNum,D12))>0,\"Opgaven forfalder!\",\"\"))","v":""},{"$f":"IF(LEN(E12)=0,\"\",IF(COUNTIF(Opgaver[FORFALDSDATO],DATE(MoÅr,MåMånedsNum,E12))>0,\"Opgaven forfalder!\",\"\"))","v":""},{"$f":"IF(LEN(F12)=0,\"\",IF(COUNTIF(Opgaver[FORFALDSDATO],DATE(MoÅr,MåMånedsNum,F12))>0,\"Opgaven forfalder!\",\"\"))","v":""},{"$f":"IF(LEN(G12)=0,\"\",IF(COUNTIF(Opgaver[FORFALDSDATO],DATE(MoÅr,MåMånedsNum,G12))>0,\"Opgaven forfalder!\",\"\"))","v":""},{"$f":"IF(LEN(H12)=0,\"\",IF(COUNTIF(Opgaver[FORFALDSDATO],DATE(MoÅr,MåMånedsNum,H12))>0,\"Opgaven forfalder!\",\"\"))","v":""}]
[null,{"$f":"IF(LEN(H12)>0,IF(H12=DAY(DATE(MoÅr,MåMånedsNum+1,0)),\"\",H12+1),\"\")","v":26},{"$f":"IF(LEN(B14)>0,IF(B14=DAY(DATE(MoÅr,MåMånedsNum+1,0)),\"\",B14+1),\"\")","v":27},28,29,30,"",""]
[null,{"$f":"IF(LEN(B14)=0,\"\",IF(COUNTIF(Opgaver[FORFALDSDATO],DATE(MoÅr,MåMånedsNum,B14))>0,\"Opgaven forfalder!\",\"\"))","v":""},{"$f":"IF(LEN(C14)=0,\"\",IF(COUNTIF(Opgaver[FORFALDSDATO],DATE(MoÅr,MåMånedsNum,C14))>0,\"Opgaven forfalder!\",\"\"))","v":""},{"$f":"IF(LEN(D14)=0,\"\",IF(COUNTIF(Opgaver[FORFALDSDATO],DATE(MoÅr,MåMånedsNum,D14))>0,\"Opgaven forfalder!\",\"\"))","v":""},{"$f":"IF(LEN(E14)=0,\"\",IF(COUNTIF(Opgaver[FORFALDSDATO],DATE(MoÅr,MåMånedsNum,E14))>0,\"Opgaven forfalder!\",\"\"))","v":""},{"$f":"IF(LEN(F14)=0,\"\",IF(COUNTIF(Opgaver[FORFALDSDATO],DATE(MoÅr,MåMånedsNum,F14))>0,\"Opgaven forfalder!\",\"\"))","v":""},{"$f":"IF(LEN(G14)=0,\"\",IF(COUNTIF(Opgaver[FORFALDSDATO],DATE(MoÅr,MåMånedsNum,G14))>0,\"Opgaven forfalder!\",\"\"))","v":""},{"$f":"IF(LEN(H14)=0,\"\",IF(COUNTIF(Opgaver[FORFALDSDATO],DATE(MoÅr,MåMånedsNum,H14))>0,\"Opgaven forfalder!\",\"\"))","v":""}]
[null,{"$f":"IF(LEN(H14)>0,IF(H14=DAY(DATE(MoÅr,MåMånedsNum+1,0)),\"\",H14+1),\"\")","v":""},{"$f":"IF(LEN(B16)>0,IF(B16=DAY(DATE(MoÅr,MåMånedsNum+1,0)),\"\",B16+1),\"\")","v":""},"","","","",""]
[null,{"$f":"IF(LEN(B16)=0,\"\",IF(COUNTIF(Opgaver[FORFALDSDATO],DATE(MoÅr,MåMånedsNum,B16))>0,\"Opgaven forfalder!\",\"\"))","v":""},{"$f":"IF(LEN(C16)=0,\"\",IF(COUNTIF(Opgaver[FORFALDSDATO],DATE(MoÅr,MåMånedsNum,C16))>0,\"Opgaven forfalder!\",\"\"))","v":""},{"$f":"IF(LEN(D16)=0,\"\",IF(COUNTIF(Opgaver[FORFALDSDATO],DATE(MoÅr,MåMånedsNum,D16))>0,\"Opgaven forfalder!\",\"\"))","v":""},{"$f":"IF(LEN(E16)=0,\"\",IF(COUNTIF(Opgaver[FORFALDSDATO],DATE(MoÅr,MåMånedsNum,E16))>0,\"Opgaven forfalder!\",\"\"))","v":""},{"$f":"IF(LEN(F16)=0,\"\",IF(COUNTIF(Opgaver[FORFALDSDATO],DATE(MoÅr,MåMånedsNum,F16))>0,\"Opgaven forfalder!\",\"\"))","v":""},{"$f":"IF(LEN(G16)=0,\"\",IF(COUNTIF(Opgaver[FORFALDSDATO],DATE(MoÅr,MåMånedsNum,G16))>0,\"Opgaven forfalder!\",\"\"))","v":""},{"$f":"IF(LEN(H16)=0,\"\",IF(COUNTIF(Opgaver[FORFALDSDATO],DATE(MoÅr,MåMånedsNum,H16))>0,\"Opgaven forfalder!\",\"\"))","v":""}]

{"sheet":"Ugevisning","index":2,"n_rows":17,"n_cols":8,"rows_kept":17,"merged":[[3,1,3,7]]}
[null,"OPGAVER","MÅNEDSVISNING"]
[null,"Vælg måned:","Angiv år:","Vælg ugenummer:"]
[null,9,{"$f":"YEAR(TODAY())","v":2016},"Uge 1"]
[null," UGEVISNING"]
[null,{"$f":"IF(WEEKDAY(DATEVALUE(\"1-\"&UgMåned&\"-\"&UgÅr)-1)=COLUMN(A$2),1,IF(LEN(A5)>0,A5+1,\"\"))","v":""},"","",1,2,3,4]
[null,{"$f":"IF(LEN(H5)>0,IF(H5=SidsteDagIMåneden_Uge,\"\",H5+1),\"\")","v":5},{"$f":"IF(LEN(B6)>0,IF(B6=SidsteDagIMåneden_Uge,\"\",B6+1),\"\")","v":6},7,8,9,10,11]
[null,{"$f":"IF(LEN(H6)>0,IF(H6=SidsteDagIMåneden_Uge,\"\",H6+1),\"\")","v":12},13,14,15,16,17,18]
[null,{"$f":"IF(LEN(H7)>0,IF(H7=SidsteDagIMåneden_Uge,\"\",H7+1),\"\")","v":19},20,21,22,23,24,25]
[null,{"$f":"IF(LEN(H8)>0,IF(H8=SidsteDagIMåneden_Uge,\"\",H8+1),\"\")","v":26},27,28,29,30,"",""]
[null,{"$f":"IF(LEN(H9)>0,IF(H9=SidsteDagIMåneden_Uge,\"\",H9+1),\"\")","v":""},"","","","","",""]
[null,"MANDAG","TIRSDAG","ONSDAG","TORSDAG","FREDAG","LØRDAG","SØNDAG"]
[null,{"$f":"IF(B14=\"\",IF(AND(ISNUMBER(A12),A12<SidsteDagIMåneden_Uge),A12+1,\"\"),IF(B14<=7,\"\",INDEX(UgMånedsVisning,UgUge,COLUMN(A$2))-7))","v":""},"","","","","",""]
[null,{"$f":"IF(LEN(B12)=0,\"\",IF(COUNTIF(Opgaver[FORFALDSDATO],DATE(UgÅr,UgMånedsNum,B12))>0,\"Opgaven forfalder!\",\"\"))","v":""},{"$f":"IF(LEN(C12)=0,\"\",IF(COUNTIF(Opgaver[FORFALDSDATO],DATE(UgÅr,UgMånedsNum,C12))>0,\"Opgaven forfalder!\",\"\"))","v":""},{"$f":"IF(LEN(D12)=0,\"\",IF(COUNTIF(Opgaver[FORFALDSDATO],DATE(UgÅr,UgMånedsNum,D12))>0,\"Opgaven forfalder!\",\"\"))","v":""},{"$f":"IF(LEN(E12)=0,\"\",IF(COUNTIF(Opgaver[FORFALDSDATO],DATE(UgÅr,UgMånedsNum,E12))>0,\"Opgaven forfalder!\",\"\"))","v":""},{"$f":"IF(LEN(F12)=0,\"\",IF(COUNTIF(Opgaver[FORFALDSDATO],DATE(UgÅr,UgMånedsNum,F12))>0,\"Opgaven forfalder!\",\"\"))","v":""},{"$f":"IF(LEN(G12)=0,\"\",IF(COUNTIF(Opgaver[FORFALDSDATO],DATE(UgÅr,UgMånedsNum,G12))>0,\"Opgaven forfalder!\",\"\"))","v":""},{"$f":"IF(LEN(H12)=0,\"\",IF(COUNTIF(Opgaver[FORFALDSDATO],DATE(UgÅr,UgMånedsNum,H12))>0,\"Opgaven forfalder!\",\"\"))","v":""}]
[null,{"$f":"INDEX(UgMånedsVisning,UgUge,COLUMN(A$2))","v":""},"","",1,2,3,4]
[null,{"$f":"IF(LEN(B14)=0,\"\",IF(COUNTIF(Opgaver[FORFALDSDATO],DATE(UgÅr,UgMånedsNum,B14))>0,\"Opgaven forfalder!\",\"\"))","v":""},{"$f":"IF(LEN(C14)=0,\"\",IF(COUNTIF(Opgaver[FORFALDSDATO],DATE(UgÅr,UgMånedsNum,C14))>0,\"Opgaven forfalder!\",\"\"))","v":""},{"$f":"IF(LEN(D14)=0,\"\",IF(COUNTIF(Opgaver[FORFALDSDATO],DATE(UgÅr,UgMånedsNum,D14))>0,\"Opgaven forfalder!\",\"\"))","v":""},{"$f":"IF(LEN(E14)=0,\"\",IF(COUNTIF(Opgaver[FORFALDSDATO],DATE(UgÅr,UgMånedsNum,E14))>0,\"Opgaven forfalder!\",\"\"))","v":""},{"$f":"IF(LEN(F14)=0,\"\",IF(COUNTIF(Opgaver[FORFALDSDATO],DATE(UgÅr,UgMånedsNum,F14))>0,\"Opgaven forfalder!\",\"\"))","v":""},{"$f":"IF(LEN(G14)=0,\"\",IF(COUNTIF(Opgaver[FORFALDSDATO],DATE(UgÅr,UgMånedsNum,G14))>0,\"Opgaven forfalder!\",\"\"))","v":""},{"$f":"IF(LEN(H14)=0,\"\",IF(COUNTIF(Opgaver[FORFALDSDATO],DATE(UgÅr,UgMånedsNum,H14))>0,\"Opgaven forfalder!\",\"\"))","v":""}]
[null,{"$f":"IFERROR(IF(B14=\"\",IF(AND(ISNUMBER(A16),A16<SidsteDagIMåneden_Uge),A16+1,$H$14+COLUMN(A$2)),IF(B14+7>SidsteDagIMåneden_Uge,\"\",INDEX(UgMånedsVisning,UgUge,COLUMN(A$2))+7)),\"\")","v":5},{"$f":"IFERROR(IF(C14=\"\",IF(AND(ISNUMBER(B16),B16<SidsteDagIMåneden_Uge),B16+1,$H$14+COLUMN(B$2)),IF(C14+7>SidsteDagIMåneden_Uge,\"\",INDEX(UgMånedsVisning,UgUge,COLUMN(B$2))+7)),\"\")","v":6},{"$f":"IFERROR(IF(D14=\"\",IF(AND(ISNUMBER(C16),C16<SidsteDagIMåneden_Uge),C16+1,$H$14+COLUMN(C$2)),IF(D14+7>SidsteDagIMåneden_Uge,\"\",INDEX(UgMånedsVisning,UgUge,COLUMN(C$2))+7)),\"\")","v":7},{"$f":"IFERROR(IF(E14=\"\",IF(AND(ISNUMBER(D16),D16<SidsteDagIMåneden_Uge),D16+1,$H$14+COLUMN(D$2)),IF(E14+7>SidsteDagIMåneden_Uge,\"\",INDEX(UgMånedsVisning,UgUge,COLUMN(D$2))+7)),\"\")","v":8},{"$f":"IFERROR(IF(F14=\"\",IF(AND(ISNUMBER(E16),E16<SidsteDagIMåneden_Uge),E16+1,$H$14+COLUMN(E$2)),IF(F14+7>SidsteDagIMåneden_Uge,\"\",INDEX(UgMånedsVisning,UgUge,COLUMN(E$2))+7)),\"\")","v":9},{"$f":"IFERROR(IF(G14=\"\",IF(AND(ISNUMBER(F16),F16<SidsteDagIMåneden_Uge),F16+1,$H$14+COLUMN(F$2)),IF(G14+7>SidsteDagIMåneden_Uge,\"\",INDEX(UgMånedsVisning,UgUge,COLUMN(F$2))+7)),\"\")","v":10},{"$f":"IFERROR(IF(H14=\"\",IF(AND(ISNUMBER(G16),G16<SidsteDagIMåneden_Uge),G16+1,$H$14+COLUMN(G$2)),IF(H14+7>SidsteDagIMåneden_Uge,\"\",INDEX(UgMånedsVisning,UgUge,COLUMN(G$2))+7)),\"\")","v":11}]
[null,{"$f":"IF(LEN(B16)=0,\"\",IF(COUNTIF(Opgaver[FORFALDSDATO],DATE(UgÅr,UgMånedsNum,B16))>0,\"Opgaven forfalder!\",\"\"))","v":""},{"$f":"IF(LEN(C16)=0,\"\",IF(COUNTIF(Opgaver[FORFALDSDATO],DATE(UgÅr,UgMånedsNum,C16))>0,\"Opgaven forfalder!\",\"\"))","v":""},{"$f":"IF(LEN(D16)=0,\"\",IF(COUNTIF(Opgaver[FORFALDSDATO],DATE(UgÅr,UgMånedsNum,D16))>0,\"Opgaven forfalder!\",\"\"))","v":""},{"$f":"IF(LEN(E16)=0,\"\",IF(COUNTIF(Opgaver[FORFALDSDATO],DATE(UgÅr,UgMånedsNum,E16))>0,\"Opgaven forfalder!\",\"\"))","v":""},{"$f":"IF(LEN(F16)=0,\"\",IF(COUNTIF(Opgaver[FORFALDSDATO],DATE(UgÅr,UgMånedsNum,F16))>0,\"Opgaven forfalder!\",\"\"))","v":""},{"$f":"IF(LEN(G16)=0,\"\",IF(COUNTIF(Opgaver[FORFALDSDATO],DATE(UgÅr,UgMånedsNum,G16))>0,\"Opgaven forfalder!\",\"\"))","v":""},{"$f":"IF(LEN(H16)=0,\"\",IF(COUNTIF(Opgaver[FORFALDSDATO],DATE(UgÅr,UgMånedsNum,H16))>0,\"Opgaven forfalder!\",\"\"))","v":""}]